bitfinex-derivatives/quotes_BNBF0:USTF0_20250424
["timestamp","ask_amount","ask_price","bid_price","bid_amount"]
[1745459116300,0.28796624,605.29,603.68,0.30402529]
[1745459118311,0.28796624,605.29,603.68,1.31202529]
[1745459118507,1.25712775,605.3,603.69,0.30402529]
[1745459118711,1.25712775,605.22,603.69,0.30402529]
[1745459120806,1.25712775,605.22,603.68,1.008]
[1745459121112,1.25712775,605.22,603.69,0.30403069]
[1745459122511,1.25712775,605.22,603.7,0.30403217]
[1745459122706,1.25712775,605.22,603.71,0.30403217]
[1745459122906,1.25712775,605.22,603.69,0.30403217]
[1745459124013,1.25712775,605.22,603.68,1.008]
[1745459124210,1.25712775,605.22,603.69,0.30404005]
[1745459124709,1.25712775,605.04,603.69,0.30404005]
[1745459125514,1.25712775,605.04,603.68,1.008]
[1745459125708,1.25712775,605.04,603.69,0.3040403]
[1745459127315,1.25712775,604.98,603.69,0.3040403]
[1745459128514,1.25712775,604.98,603.68,2.421]
[1745459129616,1.25712775,604.98,603.69,0.30405902]
[1745459130217,1.25712775,604.98,603.68,2.421]
[1745459130415,1.25712775,605.14,603.69,0.30405941]
[1745459134918,1.25712775,605.14,603.68,2.421]
[1745459135115,1.25712775,605.14,603.69,0.30404273]
[1745459136219,1.25712775,605.14,603.68,2.421]
[1745459136419,1.25712775,605.23,603.68,2.421]
[1745459137622,1.54511186,605.23,603.68,2.421]
[1745459137818,1.54511186,605.23,603.69,0.30403795]
[1745459138017,1.54511186,605.23,603.68,2.421]
[1745459138218,1.54511186,605.23,603.69,0.30403795]
[1745459139421,1.25712775,605.23,603.69,0.30403795]
[1745459139824,0.28798411,605.23,603.69,0.30403795]
[1745459141125,0.28798411,605.23,603.68,1.008]
[1745459141322,0.28798411,605.23,603.69,0.30404095]
[1745459142023,0.28798411,605.23,603.7,1.447]
[1745459142229,0.28798411,605.23,603.71,0.30404095]
[1745459142230,1.54511186,605.23,603.71,0.30404095]
[1745459142429,1.25712775,605.23,603.71,0.30404095]
[1745459142629,1.25712775,605.23,603.7,1.447]
[1745459142826,1.25712775,605.23,603.71,0.30404123]
[1745459143128,1.25712775,605.23,603.72,1.102]
[1745459143730,1.54510709,605.23,603.72,1.102]
[1745459144030,1.25712775,605.2,603.73,0.30404186]
[1745459145833,1.25712775,605.2,603.72,1.102]
[1745459146033,1.25712775,605.18,603.72,1.102]
[1745459146233,1.25712775,605.18,603.73,0.30404224]
[1745459147231,1.25712775,605.18,603.72,1.102]
[1745459147434,1.25712775,605.18,603.73,0.30404224]
[1745459148832,1.25712775,605.18,603.72,1.102]
[1745459149037,1.25712775,605.18,603.73,0.30404213]
[1745459149537,1.25712775,605.18,603.74,1.174]
[1745459150636,1.25712775,605.13,603.74,1.174]
[1745459153334,1.25712775,605.14,603.74,1.174]
[1745459155639,1.25712775,605.14,603.75,0.30404273]
[1745459157836,1.25712775,605.01,603.75,0.30404273]
[1745459158042,1.25712775,605.01,603.74,1.174]
[1745459158341,1.25712775,605.01,603.76,1.466]
[1745459160043,1.25712775,605.12,603.76,1.466]
[1745459162244,1.25712775,605.09,603.76,1.466]
[1745459162543,1.25712775,605.09,603.77,1.345]
[1745459164844,1.25712775,605.12,603.77,1.345]
[1745459167443,0.28799484,605.21,603.77,1.345]
[1745459169548,1.25712775,605.38,603.77,1.345]
[1745459169948,0.28800556,605.2,603.77,1.345]
[1745459170147,3.38585773,606.18,603.77,1.345]
[1745459171449,0.28794956,605.9,603.77,1.345]
[1745459171749,0.28794956,605.9,603.77,2.659]
[1745459172650,1.25712775,605.99,603.77,2.659]
[1745459172951,0.28794956,605.89,603.77,2.659]
[1745459174655,1.25712775,605.84,603.77,2.659]
[1745459176749,0.28797696,605.83,603.77,2.659]
[1745459177855,0.28797696,605.83,603.77,3.941]
[1745459178059,1.25712775,605.42,603.77,3.941]
[1745459179856,0.28803417,605.41,603.77,3.941]
[1745459181458,1.25712775,605.31,603.77,3.941]
[1745459182453,1.25712775,605.31,603.77,5.274]
[1745459184861,0.28803417,605.41,603.77,5.274]
[1745459184862,1.25712775,605.19,603.77,5.274]
[1745459186966,1.25712775,605.04,603.77,5.274]
[1745459189365,1.25712775,604.96,603.77,5.274]
[1745459190164,0.28807709,604.95,603.77,5.274]
[1745459192369,1.25712775,604.91,603.77,5.274]
[1745459194865,0.2881069,604.9,603.77,5.274]
[1745459196568,1.25712775,605.0,603.77,5.274]
[1745459196871,0.28809616,604.89,603.77,5.274]
[1745459197169,1.25712775,605.0,603.77,5.274]
[1745459198069,0.28809616,604.99,603.77,5.274]
[1745459198470,1.25712775,604.96,603.77,5.274]
[1745459200874,0.28808901,604.95,603.77,5.274]
[1745459201675,1.25712775,604.92,603.77,5.274]
[1745459203877,1.25712775,604.88,603.77,5.274]
[1745459206379,1.25712775,604.83,603.77,5.274]
[1745459209477,0.28809259,604.93,603.77,5.274]
[1745459211582,1.25712775,604.98,603.77,5.274]
[1745459211877,0.2880747,604.93,603.77,5.274]
[1745459212183,1.25712775,604.89,603.77,5.274]
[1745459214785,1.25712775,604.85,603.77,5.274]
[1745459217985,1.25712775,604.75,603.77,5.274]
[1745459220587,1.25712775,604.73,603.77,5.274]
[1745459221190,3.05843246,606.04,603.77,5.274]
[1745459221687,0.2879722,606.03,603.77,5.274]
[1745459223088,0.28775194,608.12,603.77,5.274]
[1745459223889,1.26394356,604.83,603.77,5.274]
[1745459224890,0.288157,604.82,603.77,5.274]
[1745459227392,1.2620274,604.58,603.77,5.274]
[1745459229793,1.2620274,604.47,603.77,5.274]
[1745459232097,1.2620274,604.66,603.77,5.274]
[1745459233097,2.1471994,605.26,603.77,5.274]
[1745459233397,0.28818444,604.65,603.77,5.274]
[1745459234599,0.28800079,606.19,603.77,5.274]
[1745459235598,0.6080397,611.63,603.77,5.274]
[1745459235799,1.25969216,604.92,603.77,5.274]
[1745459238599,1.25969216,605.15,603.77,5.274]
[1745459240403,1.25969216,604.86,603.77,5.274]
[1745459242403,1.25969216,604.88,603.77,5.274]
[1745459244904,0.28810332,604.87,603.77,5.274]
[1745459245299,1.25969216,604.99,603.77,5.274]
[1745459246603,0.28808066,604.98,603.77,5.274]
[1745459250706,1.25969216,605.1,603.77,5.274]
[1745459251903,0.28805801,605.09,603.77,5.274]
[1745459252803,1.25969216,605.06,603.77,5.274]
[1745459254909,0.28806278,605.05,603.77,5.274]
[1745459256606,1.25969216,605.12,603.77,5.274]
[1745459257406,1.25969216,605.21,603.77,5.274]
[1745459257910,0.28802106,605.2,603.77,5.274]
[1745459265615,1.25969216,605.41,603.77,5.274]
[1745459266917,0.28795432,605.4,603.77,5.274]
[1745459268619,1.25969216,605.62,603.77,5.274]
[1745459269018,0.28792931,605.61,603.77,5.274]
[1745459271621,1.25969216,605.63,603.77,5.274]
[1745459272121,0.28793765,605.62,603.77,5.274]
[1745459272717,1.25969216,605.59,603.77,5.274]
[1745459275017,0.28794241,605.58,603.77,5.274]
[1745459275921,1.25969216,605.51,603.77,5.274]
[1745459278021,0.28795194,605.5,603.77,5.274]
[1745459278827,1.25969216,605.11,603.77,5.274]
[1745459280827,1.25969216,605.04,603.77,5.274]
[1745459285734,0.28800795,605.15,603.77,5.274]
[1745459288737,1.25969216,605.09,603.77,5.274]
[1745459291937,1.25969216,605.05,603.77,5.274]
[1745459295241,1.25969216,605.26,603.77,5.274]
[1745459295539,1.25969216,605.26,603.78,0.30400233]
[1745459296133,0.287971,605.3,603.79,0.30400233]
[1745459296335,0.287971,605.3,603.55,0.30400233]
[1745459296533,0.287971,605.3,603.56,0.30399463]
[1745459296832,0.287971,605.3,603.54,0.28794599]
[1745459296833,0.287971,605.3,603.57,0.30399463]
[1745459297038,0.287971,605.3,603.58,0.30399463]
[1745459297240,0.287971,605.3,603.59,0.30399463]
[1745459297439,0.287971,605.3,603.55,0.30399463]
[1745459297639,0.287971,605.3,603.56,0.30399463]
[1745459297840,0.287971,605.3,603.57,0.30399463]
[1745459298038,0.287971,605.3,603.54,0.28794599]
[1745459298240,0.287971,605.3,603.55,0.30399482]
[1745459299040,0.28779834,605.32,603.56,0.30399482]
[1745459299234,0.28779834,605.32,603.54,0.28779834]
[1745459299440,1.26337406,605.41,603.55,1.35232177]
[1745459299643,1.26337406,605.41,603.55,1.04832695]
[1745459299843,1.26337406,605.41,603.56,0.30398853]
[1745459300646,0.28794003,605.4,603.56,0.30398853]
[1745459301249,0.28794003,605.4,603.55,1.04832695]
[1745459301447,0.28794003,605.4,603.57,0.30396547]
[1745459301646,0.28794003,605.4,603.58,0.30396547]
[1745459301848,0.28794003,605.4,603.56,0.30396547]
[1745459302048,0.28794003,605.4,603.57,0.30396547]
[1745459302251,1.26337406,605.34,603.56,0.30396547]
[1745459302449,1.26337406,605.34,603.55,0.30396547]
[1745459302648,1.26337406,605.34,603.56,0.30396547]
[1745459302848,1.26337406,605.34,603.54,0.28779834]
[1745459302849,1.26337406,605.34,603.57,0.30392525]
[1745459303045,1.26337406,605.34,603.55,0.30392525]
[1745459303251,1.26337406,605.34,603.56,0.30392525]
[1745459303449,1.26337406,605.34,603.55,0.30392525]
[1745459304853,0.28794003,605.4,603.55,0.30392525]
[1745459305454,0.28794003,605.4,603.54,0.28779834]
[1745459305649,0.28794003,605.4,603.55,0.30392059]
[1745459305949,0.28794003,605.4,603.54,0.28779834]
[1745459306253,0.28794003,605.4,603.55,0.30392031]
[1745459309057,0.28794003,605.4,603.54,0.28779834]
[1745459309258,0.28794003,605.4,603.55,0.30391641]
[1745459310659,1.26337406,605.9,603.56,0.30391429]
[1745459310959,0.28785905,605.46,603.57,0.30391429]
[1745459311160,1.26337406,605.9,603.55,0.30391429]
[1745459311360,1.26337406,605.9,603.56,0.30391429]
[1745459311560,1.26337406,605.9,603.55,0.30391429]
[1745459312362,0.28785905,605.89,603.55,0.30391429]
[1745459313662,1.26337406,606.48,603.55,0.30391429]
[1745459313863,1.26337406,606.48,603.56,0.30391429]
[1745459314162,0.28779001,605.88,603.57,0.30391429]
[1745459314364,1.26337406,606.48,603.55,0.30391429]
[1745459314557,1.26337406,606.48,603.56,0.30391429]
[1745459314756,1.26337406,606.48,603.55,0.30391429]
[1745459314956,1.26337406,606.48,603.56,0.30391429]
[1745459315263,0.28779001,606.47,603.57,0.30391429]
[1745459315462,0.28779001,606.47,603.58,0.30391429]
[1745459315655,0.28779001,606.47,603.55,0.30391429]
[1745459315857,1.26337406,606.44,603.55,0.30391429]
[1745459316859,1.26337406,606.44,603.56,0.30391843]
[1745459317059,1.26337406,606.44,603.44,0.30391843]
[1745459317256,1.26337406,606.44,603.45,0.30391843]
[1745459317458,1.26337406,606.44,603.44,0.30391843]
[1745459317666,1.26337406,606.45,603.45,0.30391843]
[1745459317858,1.26337406,606.45,603.44,0.30391843]
[1745459318060,0.28782929,606.43,603.45,0.28782929]
[1745459318463,0.28782929,606.43,603.46,0.30395409]
[1745459319066,0.28782929,606.43,603.47,1.096]
[1745459319360,0.28782929,606.43,603.48,0.30395409]
[1745459319663,1.26337406,606.45,603.48,0.30395409]
[1745459319964,0.28782334,606.42,603.48,0.30395409]
[1745459320668,1.26337406,606.15,603.48,0.30395409]
[1745459322966,0.28785905,606.14,603.48,0.30395409]
[1745459323666,1.26337406,606.02,603.48,0.30395409]
[1745459324266,1.26337406,606.02,603.49,1.134]
[1745459324463,1.26337406,606.02,603.5,0.30395409]
[1745459325868,0.28785071,606.01,603.5,0.30395409]
[1745459326467,0.28785071,606.01,603.49,1.134]
[1745459326669,0.28785071,606.01,603.5,0.30392752]
[1745459327870,0.28785071,606.01,603.51,1.238]
[1745459328368,0.28785071,606.01,603.52,0.30392428]
[1745459328665,1.26337406,605.8,603.52,0.30392428]
[1745459329771,1.26337406,605.8,603.53,0.3039248]
[1745459329970,1.26337406,605.8,603.52,0.3039248]
[1745459330971,1.26337406,605.73,603.52,0.3039248]
[1745459332972,0.28787095,605.72,603.52,0.3039248]
[1745459334473,1.26337406,605.71,603.52,0.3039248]
[1745459335574,1.26337406,605.71,603.53,0.3039248]
[1745459335773,1.26337406,605.71,603.54,0.3039248]
[1745459335971,0.28787334,605.7,603.55,0.3039248]
[1745459336171,0.28787334,605.7,603.56,0.3039248]
[1745459336474,0.28787334,605.7,603.57,0.3039248]
[1745459336668,0.28787334,605.7,603.58,0.3039248]
[1745459336972,0.28787334,605.7,603.59,0.3039248]
[1745459337174,0.28787334,605.7,603.6,0.3039248]
[1745459337375,0.28787334,605.7,603.61,0.3039248]
[1745459337569,1.26337406,605.51,603.62,0.30391616]
[1745459337769,1.26337406,605.51,603.63,0.30391616]
[1745459337968,1.5512593,605.51,603.64,0.30391616]
[1745459338167,1.5512593,605.51,603.65,0.30391616]
[1745459338372,1.5512593,605.51,603.66,0.30391616]
[1745459338673,1.5512593,605.51,603.67,0.30391616]
[1745459338869,1.5512593,605.51,603.62,0.30391616]
[1745459339073,1.5512593,605.51,603.68,0.30391616]
[1745459339370,1.5512593,605.51,603.69,0.30391616]
[1745459339675,1.5512593,605.51,603.7,0.30391616]
[1745459339873,1.5512593,605.51,603.62,0.30391616]
[1745459340174,1.5512593,605.51,603.63,0.30391616]
[1745459340369,1.5512593,605.51,603.64,0.30391616]
[1745459340577,1.26337406,605.34,603.83,1.04832695]
[1745459340874,1.26337406,605.34,603.84,0.30390917]
[1745459341570,1.26337406,605.34,603.83,1.04832695]
[1745459341775,1.26337406,605.34,603.84,0.30390202]
[1745459342471,1.26337406,605.34,603.85,1.29]
[1745459342775,1.26337406,605.34,603.86,0.30390202]
[1745459343576,1.26337406,605.32,603.86,1.35222897]
[1745459343776,1.26337406,605.32,603.87,0.30390202]
[1745459346876,1.26337406,605.41,603.87,0.30390202]
[1745459348879,1.26337406,605.51,603.87,0.30390202]
[1745459349079,1.26337406,605.51,603.86,0.30390202]
[1745459349279,1.26337406,605.51,603.87,0.30390202]
[1745459349483,1.26337406,605.51,603.85,1.29]
[1745459349684,1.26337406,605.51,603.86,0.30389423]
[1745459351385,0.28785429,605.52,603.86,0.30389423]
[1745459352684,1.26337406,605.53,603.85,1.29]
[1745459352884,1.26337406,605.53,603.86,0.30389592]
[1745459353086,0.28786857,605.51,603.85,1.29]
[1745459354084,1.55124263,605.51,603.85,1.29]
[1745459354586,1.55124263,605.51,603.8,0.28786857]
[1745459354886,1.55124263,605.51,603.81,0.30393423]
[1745459355684,1.26337406,605.51,603.81,0.30393423]
[1745459355984,0.28788405,605.5,603.82,0.30393423]
[1745459356182,0.28788405,605.5,603.78,1.04832695]
[1745459356490,0.28788405,605.5,603.79,0.30392635]
[1745459356882,0.28788405,605.5,603.78,0.30392635]
[1745459358691,1.26337406,605.72,603.78,0.30392635]
[1745459358892,0.28783881,605.52,603.77,0.28783881]
[1745459359190,1.26337406,605.54,603.78,0.30392635]
[1745459359991,0.28786024,605.53,603.78,0.30392635]
[1745459361593,1.26337406,605.42,603.81,1.04832695]
[1745459361888,1.26337406,605.42,603.82,0.30392635]
[1745459364199,0.28786976,605.52,603.82,0.30392635]
[1745459364495,0.28786976,605.52,603.83,0.30392635]
[1745459364696,1.26337406,605.64,603.84,0.30392635]
[1745459364997,0.28784595,605.52,603.85,0.30392635]
[1745459365194,1.26337406,605.64,603.82,0.30392635]
[1745459365391,1.26337406,605.64,603.83,0.30392635]
[1745459365695,1.26337406,605.64,603.84,0.30391074]
[1745459365896,1.26337406,605.64,603.82,0.30391074]
[1745459366096,1.26337406,605.64,603.83,0.30391074]
[1745459366293,1.26337406,605.64,603.84,0.30391074]
[1745459366499,1.26337406,605.61,603.82,0.30391074]
[1745459366697,1.26337406,605.61,603.83,0.30391074]
[1745459366993,1.26337406,605.61,603.84,0.30391053]
[1745459367200,1.26337406,605.61,603.82,0.30391053]
[1745459367400,1.26337406,605.61,603.83,0.30391053]
[1745459367698,1.26337406,605.61,603.84,0.30391053]
[1745459367899,1.26337406,605.61,603.74,0.30391053]
[1745459368098,0.28784714,605.6,603.82,0.28784714]
[1745459368299,0.28784714,605.6,603.83,0.30391053]
[1745459368494,0.28784714,605.6,603.75,1.18]
[1745459368699,0.28784714,605.6,603.76,0.30390689]
[1745459369703,0.28784714,605.6,603.77,0.28784476]
[1745459369903,0.28784714,605.6,603.78,0.30390689]
[1745459370097,1.26337406,605.58,603.78,0.30390689]
[1745459370903,1.26337406,605.58,603.76,0.30390689]
[1745459371103,1.26337406,605.58,603.77,0.5917457]
[1745459371303,1.26337406,605.58,603.78,0.30390689]
[1745459371700,1.26337406,605.58,603.77,0.28783881]
[1745459371901,1.26337406,605.58,603.78,0.30384631]
[1745459372606,0.28783881,605.59,603.86,1.04832695]
[1745459372901,0.28783881,605.59,603.87,0.30384631]
[1745459373200,0.28783881,605.59,603.86,1.04832695]
[1745459373504,0.28783881,605.59,603.88,1.284]
[1745459373705,1.26337406,605.65,603.89,0.30384631]
[1745459374105,0.28781738,605.64,603.89,0.30384631]
[1745459375102,1.26337406,605.49,603.95,1.04832695]
[1745459375408,1.26337406,605.49,603.96,0.30384631]
[1745459376408,1.26337406,605.49,603.95,1.04832695]
[1745459376706,1.26337406,605.49,603.96,0.30384395]
[1745459377306,1.26337406,605.56,603.96,0.30384395]
[1745459377507,1.26337406,605.56,603.91,0.30384395]
[1745459377709,1.26337406,605.56,603.92,0.30384395]
[1745459378008,1.26337406,605.56,603.93,0.30384395]
[1745459378303,1.26337406,605.56,603.94,0.30384395]
[1745459378508,1.26337406,605.56,603.91,0.30384395]
[1745459378803,1.26337406,605.56,603.92,0.30384395]
[1745459379005,1.26337406,605.56,603.91,0.30384395]
[1745459379307,0.2878281,605.59,603.91,0.30384395]
[1745459379508,0.2878281,605.59,603.89,0.30384395]
[1745459379808,1.26337406,605.62,603.9,0.30384603]
[1745459380008,1.26337406,605.62,603.89,0.30384603]
[1745459380203,0.28782096,605.59,603.89,0.30384603]
[1745459381208,0.28782096,605.59,603.88,1.284]
[1745459381410,0.28782096,605.59,603.89,1.25984576]
[1745459381603,0.28782096,605.59,603.9,0.30384576]
[1745459382604,1.26337406,605.66,603.9,0.30384576]
[1745459383005,0.287815,605.65,603.9,0.30384576]
[1745459384312,0.287815,605.65,603.89,0.956]
[1745459384610,1.26337406,605.63,603.9,0.30385498]
[1745459386112,0.28781858,605.62,603.9,0.30385498]
[1745459387512,1.26337406,605.6,603.89,1.24381858]
[1745459387806,1.26337406,605.6,603.9,0.30383214]
[1745459389014,1.26337406,605.6,603.89,1.24379358]
[1745459389209,1.26337406,605.6,603.9,0.30380483]
[1745459389712,1.26337406,605.6,603.9,1.49280483]
[1745459390013,0.28779358,605.71,603.91,0.30380483]
[1745459391608,1.26337406,605.92,603.91,0.30380483]
[1745459391909,0.28774956,605.73,603.91,0.30380483]
[1745459392214,1.26337406,605.92,603.91,0.30380483]
[1745459393114,0.28774004,605.91,603.91,0.30380483]
[1745459393814,0.28774004,605.91,603.9,1.47674956]
[1745459394015,0.28774004,605.91,603.91,0.30378984]
[1745459395116,0.28774004,605.91,603.92,0.30378984]
[1745459395416,0.28774004,605.91,603.9,1.47674956]
[1745459395715,0.28774004,605.91,603.91,0.30378232]
[1745459395716,1.26337406,605.79,603.91,0.30378232]
[1745459395916,1.26337406,605.79,603.9,1.47674956]
[1745459396818,1.26337406,605.79,603.91,0.30376519]
[1745459397116,1.26337406,605.79,603.92,0.30376519]
[1745459397316,1.26337406,605.79,603.91,0.30376519]
[1745459397517,1.26337406,605.79,603.92,0.30376519]
[1745459397818,1.26337406,605.79,603.93,0.30376519]
[1745459398017,2.14949059,606.68,603.9,1.189]
[1745459398018,1.26337406,605.83,603.95,1.04832695]
[1745459398318,0.28774361,605.82,603.96,0.30376519]
[1745459400317,0.28774361,605.82,603.95,1.04832695]
[1745459400520,0.28774361,605.82,603.96,0.30376908]
[1745459400720,1.26337406,605.83,603.96,0.30376908]
[1745459401021,1.26337406,605.83,603.97,1.337]
[1745459401221,0.28773766,605.82,603.98,0.30376908]
[1745459401918,0.28773766,605.82,603.97,1.337]
[1745459402124,0.28773766,605.82,603.98,0.30376317]
[1745459403724,1.26337406,605.87,603.98,0.30376317]
[1745459404129,0.28773053,605.86,603.98,0.30376317]
[1745459404329,1.26337406,605.84,603.98,0.30376317]
[1745459404628,1.26337406,605.84,603.97,1.337]
[1745459404928,1.26337406,605.84,603.98,0.30376246]
[1745459405529,1.26337406,605.84,603.99,0.30376246]
[1745459405730,1.26337406,605.84,604.0,0.30376246]
[1745459405925,1.26337406,605.84,604.01,0.30376246]
[1745459406128,1.26337406,605.84,603.98,0.30376246]
[1745459406432,1.26337406,605.81,603.99,1.35208941]
[1745459406630,1.26337406,605.81,604.0,0.30376246]
[1745459406829,1.26337406,605.81,604.01,0.30376246]
[1745459407030,0.28773528,605.8,604.02,0.30376246]
[1745459407226,0.28773528,605.8,604.0,0.30376246]
[1745459407530,0.28773528,605.8,604.01,0.30376246]
[1745459407730,0.28773528,605.8,604.0,0.30376246]
[1745459408030,0.28773528,605.8,604.01,0.30376246]
[1745459408232,0.28773528,605.8,604.0,0.30376246]
[1745459408532,0.28773528,605.8,604.01,0.30376246]
[1745459408731,0.28773528,605.8,604.0,0.30376246]
[1745459408935,1.26337406,605.74,604.02,1.04832695]
[1745459409130,1.26337406,605.74,604.03,0.30376246]
[1745459411032,0.28776384,605.73,604.03,0.30376246]
[1745459411237,0.28776384,605.73,604.03,1.71976246]
[1745459411437,0.28776384,605.73,604.04,0.30376246]
[1745459411643,0.28776384,605.73,604.03,2.673]
[1745459412638,1.26337406,606.17,604.03,2.673]
[1745459413037,0.28771149,606.16,604.03,2.673]
[1745459413332,0.28771149,606.16,604.04,0.30381981]
[1745459413532,0.28771149,606.16,604.03,2.673]
[1745459413735,0.28771149,606.16,604.04,0.30384967]
[1745459415639,1.26337406,606.14,604.04,0.30384967]
[1745459417341,1.26337406,606.14,604.03,2.673]
[1745459417636,1.26337406,606.14,604.04,0.30384987]
[1745459419442,1.26337406,605.85,604.04,0.30384987]
[1745459420542,1.26337406,605.85,604.03,2.673]
[1745459420738,1.26337406,605.85,604.04,0.30384895]
[1745459422045,0.28777692,605.84,604.03,2.673]
[1745459422348,1.26337406,605.72,604.03,2.673]
[1745459422541,1.26337406,605.72,604.04,0.3038874]
[1745459422844,1.26337406,605.72,604.03,2.673]
[1745459423345,1.26337406,605.72,604.03,1.416]
[1745459424544,1.26337406,605.56,604.03,1.416]
[1745459426745,0.2877912,605.71,604.03,1.416]
[1745459427745,1.26337406,606.02,604.03,1.416]
[1745459428042,0.28775551,605.7,604.03,1.416]
[1745459428246,1.26337406,606.02,604.03,1.416]
[1745459429242,1.26337406,605.95,604.03,1.416]
[1745459430951,0.28776384,605.94,604.03,1.416]
[1745459431349,0.28776384,605.94,604.04,0.30386072]
[1745459433447,0.28776384,605.94,604.03,1.416]
[1745459433646,1.26337406,606.0,604.04,0.30385709]
[1745459434042,0.28775789,605.99,604.04,0.30385709]
[1745459434548,1.26337406,605.76,604.04,0.30385709]
[1745459435045,1.26337406,605.76,604.03,1.416]
[1745459435241,1.26337406,605.76,604.04,0.30385698]
[1745459437148,0.28778644,605.75,604.04,0.30385698]
[1745459437448,1.26337406,605.68,604.04,0.30385698]
[1745459438450,1.26337406,605.68,603.93,0.30385698]
[1745459439950,1.26337406,605.68,603.79,0.30385698]
[1745459440249,0.28782572,605.67,603.92,0.28782572]
[1745459440449,0.28782572,605.67,603.93,0.30385698]
[1745459440650,0.28782572,605.67,603.8,0.974]
[1745459440850,0.28782572,605.67,603.81,0.30385698]
[1745459441251,0.28782572,605.67,603.82,0.28782334]
[1745459441446,0.28782572,605.67,603.83,0.30385698]
[1745459442151,1.26337406,605.65,603.83,0.30385698]
[1745459443946,1.26337406,605.51,603.83,0.30385698]
[1745459446356,1.26337406,605.51,603.82,1.33615029]
[1745459446556,1.26337406,605.5,603.84,1.04832695]
[1745459446855,1.26337406,605.5,603.85,0.30385991]
[1745459448053,1.26337406,605.5,603.84,1.04832695]
[1745459448254,1.26337406,605.5,603.85,0.30385991]
[1745459449360,0.28784,605.59,603.85,0.30385991]
[1745459449557,0.28784,605.59,603.84,0.30385991]
[1745459451255,0.28784,605.59,603.83,0.28784]
[1745459451459,0.28784,605.59,603.84,0.30387938]
[1745459451659,1.26337406,605.63,603.84,0.30387938]
[1745459451860,1.26337406,605.63,603.81,0.30387938]
[1745459452061,0.28785071,605.62,603.83,0.28785071]
[1745459452262,0.28785071,605.62,603.84,0.30387938]
[1745459452961,0.28785071,605.62,603.84,1.35220633]
[1745459453162,0.28785071,605.62,603.85,0.30387938]
[1745459453663,0.28785071,605.62,603.84,1.04832695]
[1745459454668,1.26337406,605.67,603.84,1.04832695]
[1745459455060,0.2878531,605.61,603.84,1.04832695]
[1745459455662,0.2878531,605.61,603.8,1.2618531]
[1745459456263,0.2878531,605.61,603.8,0.974]
[1745459457669,1.26337406,605.97,603.8,2.43]
[1745459457966,0.28784833,605.6,603.8,2.43]
[1745459458267,1.26337406,605.97,603.8,2.43]
[1745459458766,1.26337406,605.74,603.8,2.43]
[1745459461169,0.28788048,605.73,603.8,2.43]
[1745459461769,0.28788048,605.73,603.81,0.30399587]
[1745459461969,0.28788048,605.73,603.8,2.43]
[1745459461970,1.26337406,605.59,603.8,2.43]
[1745459462269,1.26337406,605.59,603.81,0.30399589]
[1745459463370,1.26337406,605.59,603.8,1.456]
[1745459465270,0.28788048,605.73,603.8,1.456]
[1745459465669,0.28788048,605.73,603.8,2.554]
[1745459466670,1.26337406,605.78,603.8,2.554]
[1745459467072,0.28787572,605.77,603.8,2.554]
[1745459467772,1.26337406,605.72,603.8,2.554]
[1745459470375,1.26337406,605.66,603.8,2.554]
[1745459470874,1.26337406,605.66,603.81,0.30400086]
[1745459471675,1.26337406,605.66,603.8,2.554]
[1745459471975,1.26337406,605.66,603.81,0.30400433]
[1745459472574,1.26337406,605.39,603.81,1.24600433]
[1745459472774,1.26337406,605.39,603.82,0.30400433]
[1745459472971,0.28793526,605.38,603.82,0.30400433]
[1745459473174,0.28793526,605.38,603.81,0.942]
[1745459473374,0.28793526,605.38,603.82,0.30400567]
[1745459475874,1.26337406,605.42,603.82,0.30400567]
[1745459476175,0.28793526,605.37,603.82,0.30400567]
[1745459477978,0.28793526,605.37,603.83,1.211]
[1745459478170,0.28793526,605.37,603.84,0.30400567]
[1745459478677,1.26337406,605.43,603.84,0.30400567]
[1745459479079,0.28791382,605.36,603.84,0.30400567]
[1745459479579,0.28791382,605.36,603.83,1.211]
[1745459479975,0.28791382,605.36,603.84,0.30397677]
[1745459480782,1.26337406,605.52,603.84,0.30397677]
[1745459481178,0.28788762,605.43,603.83,1.211]
[1745459481383,1.26337406,605.52,603.84,0.30395177]
[1745459482084,1.26337406,605.52,603.85,1.307]
[1745459482283,0.28786262,605.51,603.85,1.307]
[1745459484387,0.28786262,605.51,603.86,0.30389438]
[1745459484687,1.26337406,605.67,603.86,0.30389438]
[1745459484987,0.28783405,605.54,603.86,0.30389438]
[1745459485286,1.26337406,605.67,603.86,0.30389438]
[1745459485786,1.26337406,605.67,603.85,1.307]
[1745459486087,0.28783048,605.66,603.86,0.30388197]
[1745459487589,1.26337406,605.76,603.86,0.30388197]